Cogmind - Beta 11 X4 @@@ ROGUE MODE // 2021.05.31 @ 20:05:10 Player: Terminus Result: Self-destructed Performance ------------- Evolutions (3) 1500 Regions Visited (9) 1800 Robots Destroyed (156) 780 Value Destroyed (3815) 3815 Prototype IDs (5) 100 Alien Tech Used (0) 0 Bonus (319) 319 TOTAL SCORE: 8314 Bonus ------- High Alert Combat Kills 319 Cogmind --------- Core Integrity 685/700 Matter 149/300 Energy 290/290 System Corruption 0% Temperature Cool (0) Movement Treading (258) Ox1 Location -7/Lower Caves Parts ------- > --- POWER (1) -------- Improved Deuterium Engine > --- PROPULSION (3) --- Light Treads Armored Treads Advanced Treads > --- UTILITY (6) ------ Cooling System Huge Storage Unit Improved Sensor Array Improved Signal Interpreter Hardened Medium Armor Plating Hacking Suite > --- WEAPON (3) ------- Gauss Rifle Gauss Rifle Katana > --- INVENTORY (25) --- Deuterium Engine Deuterium Engine Improved Deuterium Engine Light Treads Light Treads Light Treads Cooling System Cooling System Weapon Cycler Improved Light Armor Plating Hacking Suite Advanced Beam Cannon Advanced Beam Cannon Advanced Beam Cannon Advanced Beam Cannon Plasma Cannon Plasma Cannon Plasma Cannon Plasma Cannon Gauss Rifle Gauss Rifle Advanced EMP Blaster Advanced EMP Blaster Peak State ------------ > --- POWER ------------ Improved Deuterium Engine > --- PROPULSION ------- Light Treads Armored Treads Advanced Treads > --- UTILITY ---------- Cooling System Huge Storage Unit Improved Sensor Array Improved Signal Interpreter Hardened Medium Armor Plating Hacking Suite > --- WEAPON ----------- Gauss Rifle Gauss Rifle Gauss Rifle > --- INVENTORY -------- Deuterium Engine Deuterium Engine Improved Deuterium Engine Light Treads Light Treads Light Treads Cooling System Cooling System Weapon Cycler Improved Light Armor Plating Hacking Suite Advanced Beam Cannon Advanced Beam Cannon Advanced Beam Cannon Advanced Beam Cannon Plasma Cannon Plasma Cannon Plasma Cannon Plasma Cannon Gauss Rifle Advanced EMP Blaster Advanced EMP Blaster Katana [Rating: 45] Favorites ----------- Power Deuterium Engine Engine Deuterium Engine Propulsion Light Treads Treads Light Treads Utility High-capacity Storage Unit Device Heat Sink Storage High-capacity Storage Unit Processor Improved Signal Interpreter Hackware Hacking Suite Protection Hardened Light Armor Plating Weapon Heavy Assault Rifle Energy Cannon Advanced Beam Cannon Ballistic Gun Heavy Assault Rifle Launcher Mini Grenade Launcher Slashing Weapon Katana Build | -11 -10 -10 -9 -9 -9 -8 -8 -7 -7 ------- Run | Scr Mat Min Mat Min Exi Min Mat Fac Low Slots Evolved 6 | . . . 2 . . . 2 2 . Power . | . . . . . . . . . . Propulsion 1 | . . . . . . . 1 . . Utility 4 | . . . 1 . . . 1 2 . Weapon 1 | . . . 1 . . . . . . Parts Attached 85 | 6 6 3 25 3 . 3 26 13 . Power 7 | 1 2 . 1 . . . 2 1 . Engine 7 | 1 2 . 1 . . . 2 1 . Core . | . . . . . . . . . . Reactor . | . . . . . . . . . . Propulsion 22 | 2 . . 9 . . . 11 . . Treads 22 | 2 . . 9 . . . 11 . . Leg . | . . . . . . . . . . Wheel . | . . . . . . . . . . Hover . | . . . . . . . . . . Flight . | . . . . . . . . . . Utility 22 | 1 2 . 5 . . 1 6 7 . Device 12 | . 1 . 2 . . 1 3 5 . Storage 3 | 1 1 . . . . . . 1 . Processor 1 | . . . . . . . . 1 . Hackware 1 | . . . . . . . 1 . . Protection 5 | . . . 3 . . . 2 . . Artifact . | . . . . . . . . . . Weapon 34 | 2 2 3 10 3 . 2 7 5 . Energy Gun . | . . . . . . . . . . Energy Cannon 2 | . . . 1 . . 1 . . . Ballistic Gun 22 | 2 2 2 6 1 . 1 6 2 . Ballistic Cannon . | . . . . . . . . . . Launcher 6 | . . 1 3 1 . . 1 . . Special Weapon . | . . . . . . . . . . Impact Weapon . | . . . . . . . . . . Slashing Weapon 4 | . . . . 1 . . . 3 . Piercing Weapon . | . . . . . . . . . . Special Melee Weapon . | . . . . . . . . . . Unidentified Prototypes 3 | . . . 1 . . . 2 . . Parts Lost 5 | . 1 1 1 . . 1 1 . . Power 1 | . 1 . . . . . . . . Propulsion . | . . . . . . . . . . Utility 1 | . . . . . . . 1 . . Weapon 3 | . . 1 1 . . 1 . . . Highest Loss Streak 1 | . 1 1 1 . . 1 1 . . Average Slot Usage (%) 99 | . 89 99 99 100 100 99 100 100 100 Engine 9 | . 10 14 11 11 11 11 9 7 7 Treads 24 | . 28 28 22 22 22 22 27 23 23 Device 11 | . 7 14 11 11 11 11 10 15 15 Storage 10 | . 14 14 11 11 11 11 9 7 7 Hackware 3 | . . . . . . . 7 7 7 Protection 8 | . . . 10 11 11 11 9 7 7 Ballistic Gun 28 | . 28 26 32 32 22 28 26 21 15 Naked Turns . | . . . . . . . . . . Heaviest Build 113 | 14 54 54 64 64 63 65 71 113 111 Greatest Support 62 | 40 40 40 40 40 40 40 62 62 62 Greatest Overweight (x) 4 | 4 1 1 1 1 1 1 1 1 1 Average Overweight (x) . | . . 1 1 1 1 1 1 1 1 Largest Inventory Capacity 25 | 8 20 20 20 20 20 20 20 25 25 Average Capacity 20 | 7 13 20 20 20 20 20 20 23 25 Most Carried 23 | 2 10 10 20 20 20 20 20 23 23 Average Carried 18 | 1 7 9 18 20 20 19 19 20 23 Final Capacity 25 | 8 20 20 20 20 20 20 20 25 25 Final Carried 23 | 2 10 9 20 20 20 20 20 23 23 Class Distribution -------------------- 37% | Scavenger-Tank 35% | Tank 11% | Mutant 7% | Skirmisher 6% | Scavenger-Mutant Dominant Class ---------------- Mutant | -10/Materials Mutant | -10/Mines Tank | -9/Materials Tank | -9/Mines Scavenger-Mutant | -9/Exiles Tank | -8/Mines Scavenger-Tank | -8/Materials Skirmisher | -7/Factory Scavenger-Mutant | -7/Lower Caves Resources | -11 -10 -10 -9 -9 -9 -8 -8 -7 -7 ----------- Run | Scr Mat Min Mat Min Exi Min Mat Fac Low Matter Collected 3477 | 258 147 122 1316 120 . 137 1110 267 . Remotely . | . . . . . . . . . . Salvage Created 5720 | . 203 53 2623 215 . 201 1960 465 . Parts 338 | . 15 6 163 3 . 12 122 17 . Haulers Intercepted 12 | . . . 6 . . . 6 . . Recyclers Shooed 6 | . . . 4 . . . 2 . . Parts Field Recycled . | . . . . . . . . . . Retrieved Matter . | . . . . . . . . . . Parts Self-Destructed . | . . . . . . . . . . Prevented . | . . . . . . . . . . Kills | -11 -10 -10 -9 -9 -9 -8 -8 -7 -7 ------- Run | Scr Mat Min Mat Min Exi Min Mat Fac Low Combat Hostiles Destroyed 104 | . 6 7 50 3 . 6 26 6 . Guns 86 | . 6 3 41 . . 5 25 6 . Cannons 1 | . . . . . . 1 . . . AOE 17 | . . 4 9 3 . . 1 . . Classes Destroyed 14 | . 4 1 8 . . . . 1 . Worker 10 | . . . 7 1 . . 2 . . Builder 2 | . . . 2 . . . . . . Hauler 12 | . . . 6 . . . 6 . . Recycler 11 | . . . 3 2 . . 5 1 . Mechanic 1 | . . . 1 . . . . . . Operator 8 | . 1 . 2 . . . 4 1 . Watcher 12 | . 1 . 5 . . . 5 1 . Swarmer 28 | . 3 3 11 . . 3 8 . . Grunt 42 | . 3 . 23 3 . 3 7 3 . Brawler 6 | . . . 5 . . . 1 . . Duelist 2 | . . . 2 . . . . . . Sentry 21 | . . . 9 . . . 10 2 . Programmer 1 | . . . . . . . . 1 . Assembled 4 | . . 4 . . . . . . . Best Kill Streak 9 | . 3 4 9 3 . 3 6 4 . Combat Bots Only 8 | . 3 4 8 3 . 3 4 3 . Max Kills in Single Turn 4 | . 1 2 4 2 . 2 2 2 . Gunslinging 1 | . . . 1 . . 1 1 1 . Exploded 3 | . . 2 3 2 . . 1 . . Melee . | . . . . . . . . . . Uniques/NPCs Destroyed . | . . . . . . . . . . Combat | -11 -10 -10 -9 -9 -9 -8 -8 -7 -7 -------- Run | Scr Mat Min Mat Min Exi Min Mat Fac Low Damage Taken 3103 | . 393 111 1006 47 . 110 843 593 . Core 332 | . 40 10 157 . . 7 103 15 . Absorbed by Shields . | . . . . . . . . . . Core Remaining (%) 80 | 100 . 80 . . . 59 81 . . Volleys Fired 279 | . 23 7 117 10 . 11 86 25 . Largest 3 | . 2 2 3 3 . 3 3 3 . Hottest 114 | . 46 46 76 69 . 114 84 84 . Shots Fired 781 | . 46 10 343 18 . 32 258 74 . Gun 765 | . 46 6 338 12 . 31 258 74 . Cannon 1 | . . . . . . 1 . . . Launcher 15 | . . 4 5 6 . . . . . Special . | . . . . . . . . . . Kinetic 765 | . 46 6 338 12 . 31 258 74 . Thermal 1 | . . . . . . 1 . . . Explosive 15 | . . 4 5 6 . . . . . Electromagnetic . | . . . . . . . . . . Robot Hit Streak 19 | . 9 2 19 7 . 9 15 10 . Robot Miss Streak 5 | . 3 1 5 1 . 2 4 1 . Penetration Max . | . . . . . . . . . . Secondary Targets 18 | . . . 7 . . 2 8 1 . Max Gunslinging Chain 1 | . . . 1 . . 1 1 1 . Shots Hit Robots 504 | . 29 3 215 14 . 23 166 54 . Core Hits 244 | . 11 8 106 10 . 12 80 17 . Critical Kills . | . . . . . . . . . . Critical Parts Destroyed 1 | . . . 1 . . . . . . Critical Strikes 1 | . . . 1 . . . . . . Destroy 1 | . . . 1 . . . . . . Melee Attacks 5 | . . . . 1 . . . 4 . Impact . | . . . . . . . . . . Slashing 5 | . . . . 1 . . . 4 . Piercing . | . . . . . . . . . . Sneak Attacks . | . . . . . . . . . . Combat Hostiles . | . . . . . . . . . . Follow-up Attacks . | . . . . . . . . . . Damage Inflicted 10027 | 11 446 294 4379 597 . 371 2830 1099 . Guns 8145 | . 439 47 3357 160 . 348 2721 1073 . Cannons 21 | . . . . . . 21 . . . Explosions 1720 | . . 235 972 435 . . 78 . . Melee . | . . . . . . . . . . Ramming 141 | 11 7 12 50 2 . 2 31 26 . Kinetic 8145 | . 439 47 3357 160 . 348 2721 1073 . Thermal 21 | . . . . . . 21 . . . Explosive 1642 | . . 235 972 435 . . . . . Electromagnetic 78 | . . . . . . . 78 . . Impact . | . . . . . . . . . . Slashing . | . . . . . . . . . . Piercing . | . . . . . . . . . . Highest Corruption 1 | . . . 1 1 1 1 . . . Average Corruption 1 | . . . 1 1 1 1 . . . Corruption Purged . | . . . . . . . . . . Effects 14 | . . . 4 5 4 1 . . . Message Errors 5 | . . . 2 1 1 1 . . . Energy Discharges 2 | . . . . 1 1 . . . . Data Loss (minor) 7 | . . . 2 3 2 . . . . Overload Shots . | . . . . . . . . . . Overflow Damage 49 | . . 4 26 19 . . . . . Projectiles . | . . . . . . . . . . Explosions 49 | . . 4 26 19 . . . . . Melee . | . . . . . . . . . . Knockbacks 2 | . . . 1 . . . 1 . . Impact 2 | . . . 1 . . . 1 . . Kinetic . | . . . . . . . . . . Secondary . | . . . . . . . . . . Self-Inflicted Damage 79 | . . 22 29 . . . 28 . . Shots 3 | . . 1 1 . . . 1 . . Rammed 24 | 2 2 1 8 1 . 1 7 2 . Targets Rammed 28 | 2 2 1 11 1 . 1 8 2 . Kicked . | . . . . . . . . . . Crushed 4 | . . . 3 . . . 1 . . Highest Temperature 42 | . 2 6 20 . . 33 26 42 . Average Temperature 6 | . 2 6 4 . . 7 4 16 . Received Heat Transfer 1047 | . 72 60 267 24 . 54 324 246 . Siege Activations . | . . . . . . . . . . Robots Corrupted . | . . . . . . . . . . Combat Hostiles . | . . . . . . . . . . Parts Fried . | . . . . . . . . . . Impact Corruptions . | . . . . . . . . . . Robots Melted . | . . . . . . . . . . Combat Hostiles . | . . . . . . . . . . Parts Melted . | . . . . . . . . . . Heat Transferred 37 | . . . . . . 37 . . . Parts Sabotaged . | . . . . . . . . . . Parts Stolen . | . . . . . . . . . . Parts Stripped . | . . . . . . . . . . Power Chain Reactions . | . . . . . . . . . . Missiles Intercepted . | . . . . . . . . . . Alert | -11 -10 -10 -9 -9 -9 -8 -8 -7 -7 ------- Run | Scr Mat Min Mat Min Exi Min Mat Fac Low Peak Influence 868 | . 122 98 868 338 . 130 344 117 . Initial 338 | . . 28 . 338 . . 50 95 . Average 184 | . 69 78 346 155 . 76 154 56 . Maximum Alert Level 3 | . . . 3 1 . . 1 . . Low Security (%) 62 | 100 100 100 33 71 . 100 54 100 . Level 1 25 | . . . 22 28 . . 45 . . Level 2 9 | . . . 35 . . . . . . Level 3 2 | . . . 8 . . . . . . Level 4 . | . . . . . . . . . . Level 5 . | . . . . . . . . . . High Security . | . . . . . . . . . . Max Security . | . . . . . . . . . . Squads Dispatched 16 | . 2 . 9 . . . 1 4 . Investigation 4 | . 1 . 3 . . . . . . Extermination 1 | . . . . . . . . 1 . Reinforcement 8 | . 1 . 3 . . . 1 3 . Assault 3 | . . . 3 . . . . . . Garrison . | . . . . . . . . . . Intercept . | . . . . . . . . . . Construction Impeded . | . . . . . . . . . . Haulers Reinforced . | . . . . . . . . . . Cargo Convoy Interrupts . | . . . . . . . . . . Stealth | -11 -10 -10 -9 -9 -9 -8 -8 -7 -7 --------- Run | Scr Mat Min Mat Min Exi Min Mat Fac Low Distress Signals 5 | . . . 2 . . . 3 . . Communications Jammed . | . . . . . . . . . . Distress Signals . | . . . . . . . . . . Times Spotted 143 | . 8 9 70 3 . 6 39 8 . Peak Tracking Total 6 | . 3 6 5 3 . 3 5 3 . Tactical Retreats 3 | . . 1 1 . . . 1 . . Traps | -11 -10 -10 -9 -9 -9 -8 -8 -7 -7 ------- Run | Scr Mat Min Mat Min Exi Min Mat Fac Low Traps Triggered 4 | . 1 . 3 . . . . . . Indirectly . | . . . . . . . . . . Trap Hack Attempts . | . . . . . . . . . . Triggered . | . . . . . . . . . . Disarmed . | . . . . . . . . . . Reprogrammed . | . . . . . . . . . . Reused . | . . . . . . . . . . Traps Extracted . | . . . . . . . . . . Installed . | . . . . . . . . . . Triggered . | . . . . . . . . . . Machines | -11 -10 -10 -9 -9 -9 -8 -8 -7 -7 ---------- Run | Scr Mat Min Mat Min Exi Min Mat Fac Low Machines Disabled 5 | . 2 . 1 . . . 2 . . Max in Single Turn 1 | . 1 . 1 . . . 1 . . Garrison Access 1 | . . . . . . . 1 . . Machines Sabotaged . | . . . . . . . . . . Garrisons Compromised . | . . . . . . . . . . Overloaded Fab Kills . | . . . . . . . . . . Fab Network Shutdowns . | . . . . . . . . . . Hacking | -11 -10 -10 -9 -9 -9 -8 -8 -7 -7 --------- Run | Scr Mat Min Mat Min Exi Min Mat Fac Low Machines Accessed 27 | . 1 1 9 . 1 . 12 3 . Terminals 22 | . 1 1 7 . . . 11 2 . Fabricators 1 | . . . . . . . . 1 . Repair Stations . | . . . . . . . . . . Recycling Units 1 | . . . 1 . . . . . . Scanalyzers 1 | . . . 1 . . . . . . Garrison Access 1 | . . . . . . . 1 . . Total Hacks 94 | . 4 3 31 . 4 . 41 11 . Successful 65 | . 2 2 20 . 4 . 29 8 . Failed 29 | . 2 1 11 . . . 12 3 . Catastrophic 3 | . . . 2 . . . 1 . . Database Lockouts . | . . . . . . . . . . Manual 55 | . 4 2 18 . . . 25 6 . Terminals 75 | . 4 3 19 . . . 40 9 . Fabricators 2 | . . . . . . . . 2 . Repair Stations . | . . . . . . . . . . Recycling Units 1 | . . . 1 . . . . . . Scanalyzers 11 | . . . 11 . . . . . . Garrison Access 1 | . . . . . . . 1 . . Terminal Hacks 30 | . 1 1 3 . 4 . 17 4 . Record 4 | . . . . . 4 . . . . Part Schematic 2 | . . . . . . . 2 . . Prototype ID Bank 1 | . . . . . . . 1 . . Branch Access Points 3 | . . . 1 . . . 1 1 . Terminal Index 2 | . . . . . . . 1 1 . Fabricator Index 1 | . . . . . . . . 1 . Alert Level 4 | . . . . . . . 3 1 . Unreport Threat 4 | . . . 1 . . . 3 . . Recall Reinforcements 1 | . . . . . . . 1 . . Hauler Manifests 2 | . . . 1 . . . 1 . . Registered Components 1 | . . . . . . . 1 . . Zone Layout 5 | . 1 1 . . . . 3 . . Fabricator Hacks 2 | . . . . . . . . 2 . Load Schematic 1 | . . . . . . . . 1 . Build 1 | . . . . . . . . 1 . Repair Station Hacks . | . . . . . . . . . . Recycling Unit Hacks . | . . . . . . . . . . Scanalyzer 11 | . . . 11 . . . . . . Insert Component 6 | . . . 6 . . . . . . Analyze 5 | . . . 5 . . . . . . Garrison Access Hacks 1 | . . . . . . . 1 . . Seal Access 1 | . . . . . . . 1 . . Unauthorized Hacks 21 | . 1 1 6 . . . 11 2 . Terminals 20 | . 1 1 5 . . . 11 2 . Track 1 | . . . . . . . 1 . . Assimilate 1 | . . . . . . . . 1 . Botnet 18 | . 1 1 5 . . . 10 1 . Fabricators . | . . . . . . . . . . Repair Stations . | . . . . . . . . . . Recycling Units 1 | . . . 1 . . . . . . Tunnel 1 | . . . 1 . . . . . . Scanalyzers . | . . . . . . . . . . Garrison Access . | . . . . . . . . . . Data Cores Recovered 2 | . . . . . . . 2 . . Used 1 | . . . . . . . 1 . . Hacking Detections 24 | . 1 1 8 . . . 11 3 . Full Trace Events 1 | . 1 . . . . . . . . Feedback Events . | . . . . . . . . . . Feedback Blocked . | . . . . . . . . . . Robot Schematics Acquired . | . . . . . . . . . . Robots Built . | . . . . . . . . . . Matter . | . . . . . . . . . . Time . | . . . . . . . . . . Total Robot Build Rating . | . . . . . . . . . . Part Schematics Acquired 5 | . . . 4 . . . 1 . . Parts Built 1 | . . . . . . . . 1 . Matter 102 | . . . . . . . . 102 . Time 51 | . . . . . . . . 51 . Total Part Build Rating 1 | . . . . . . . . 1 . Parts Repaired . | . . . . . . . . . . Time . | . . . . . . . . . . Parts Recycled . | . . . . . . . . . . Recycled Matter . | . . . . . . . . . . Retrieved Matter . | . . . . . . . . . . Retrieved Components . | . . . . . . . . . . Parts Scanalyzed 4 | . . . 4 . . . . . . Part Schematics Acquired 4 | . . . 4 . . . . . . Parts Damaged . | . . . . . . . . . . Bothacking | -11 -10 -10 -9 -9 -9 -8 -8 -7 -7 ------------ Run | Scr Mat Min Mat Min Exi Min Mat Fac Low Used RIF Installer . | . . . . . . . . . . Robots Hacked . | . . . . . . . . . . Non-combat . | . . . . . . . . . . Combat . | . . . . . . . . . . Robot Hacks Applied . | . . . . . . . . . . Relay Couplers Released . | . . . . . . . . . . Robots Rewired . | . . . . . . . . . . Allies Hacked . | . . . . . . . . . . Hacks Repelled . | . . . . . . . . . . Allies | -11 -10 -10 -9 -9 -9 -8 -8 -7 -7 -------- Run | Scr Mat Min Mat Min Exi Min Mat Fac Low Total Allies 2 | . . . . 1 . . . 1 . Largest Group 1 | . . . . 1 . . . 1 . Highest-Rated Group 31 | . . . . 31 . . . 26 . Highest-Rated Ally 31 | . . . . 31 . . . 26 . Total Orders . | . . . . . . . . . . Ally Attacks . | . . . . . . . . . . Total Damage . | . . . . . . . . . . Kills . | . . . . . . . . . . Allies Corrupted . | . . . . . . . . . . Allies Melted . | . . . . . . . . . . Intel | -11 -10 -10 -9 -9 -9 -8 -8 -7 -7 ------- Run | Scr Mat Min Mat Min Exi Min Mat Fac Low Robot Analysis Total . | . . . . . . . . . . Derelict Logs Recovered 5 | . . 2 . 2 . . . . 1 Drone Launches . | . . . . . . . . . . Drone Recoveries . | . . . . . . . . . . Exploration | -11 -10 -10 -9 -9 -9 -8 -8 -7 -7 ------------- Run | Scr Mat Min Mat Min Exi Min Mat Fac Low Turns Passed 11403 | 101 621 457 2976 1393 411 335 3709 1267 133 Spaces Moved 3827 | 57 261 147 884 522 159 110 1295 341 51 Core 25 | 25 . . . . . . . . . Treads 3802 | 32 261 147 884 522 159 110 1295 341 51 Legs . | . . . . . . . . . . Wheels . | . . . . . . . . . . Hover . | . . . . . . . . . . Flight . | . . . . . . . . . . Fastest Speed 50 | 50 160 260 260 260 260 260 255 258 258 Average Speed 252 | 154 194 260 260 260 260 260 257 258 258 Slowest Speed 260 | 250 260 260 260 260 260 260 260 258 258 Overloaded Moves . | . . . . . . . . . . Propulsion Burnouts . | . . . . . . . . . . Robots Hopped . | . . . . . . . . . . Cave-ins Triggered . | . . . . . . . . . . Exploration Rate (%) 45 | 5 38 29 93 94 54 23 97 8 14 Regions Visited 9 Branch Regions 5 Pre-discovered Areas 3 | . . 1 1 . 1 . . . . Known Exits Taken 2 | . . . 1 . . . . 1 . Unknown Exits Taken 7 | 1 1 1 . 1 1 1 1 . . Scrap Searched 3 | . . . . 1 . 2 . . . Spaces Dug 5 | . . . . 1 . . . 4 . Terrain Destroyed 101 | . . 34 41 19 . . . 7 . Melee 5 | . . . . 1 . . . 4 . Projectile 3 | . . . . . . . . 3 . AOE 93 | . . 34 41 18 . . . . . Terrain Rammed . | . . . . . . . . . . Walls Destroyed . | . . . . . . . . . . Machines Disabled . | . . . . . . . . . . Actions | -11 -10 -10 -9 -9 -9 -8 -8 -7 -7 --------- Run | Scr Mat Min Mat Min Exi Min Mat Fac Low Total 4988 | 66 327 210 1294 540 158 135 1539 667 52 Wait 656 | . 24 53 212 4 . 11 73 278 1 Move 3819 | 57 260 146 883 521 158 109 1294 340 51 Hop . | . . . . . . . . . . Pick Up 54 | 2 8 . 23 . . . 17 4 . Fast Attach 12 | 6 2 . 2 . . . 2 . . Attach 9 | . . 1 2 . . 1 3 2 . Detach . | . . . . . . . . . . Swap 64 | . 4 2 21 3 . 2 21 11 . Drop 63 | . 4 . 23 . . . 35 1 . Fire 279 | . 23 7 117 10 . 11 86 25 . Melee 5 | . . . . 1 . . . 4 . Ram . | . . . . . . . . . . Kick . | . . . . . . . . . . Crush 27 | 1 2 1 11 1 . 1 8 2 . Escape Stasis . | . . . . . . . . . . Rewire . | . . . . . . . . . . Trap . | . . . . . . . . . . Miscellaneous . | . . . . . . . . . . Route ------- -11/Scrapyard -10/Materials (discovered 2 exits: *Mat / *Min) -10/Mines -9/Materials (discovered 6 exits: *Mat x3 / *Min / *Sto x2) -9/Mines (discovered 3 exits: *Mat x2 / *Exi) -9/Exiles -8/Mines -8/Materials (discovered 3 exits: *Fac x3) -7/Factory (discovered 2 exits: *Low x2) -7/Lower Caves (discovered 1 exit: Low) History --------- Turn | Location | Event 7 | -11/Scrapyard | Discovered new exit (range 16) 102 | -11/Scrapyard | Entered Materials 243 | -10/Materials | Discovered new exit (range 11) 315 | -10/Materials | Build established: Mutant 376 | -10/Materials | Discovered new exit (range 15) 723 | -10/Materials | Entered Mines 846 | -10/Mines | Discovered new exit (range 11) 942 | -10/Mines | Learned Materials stockpile data 972 | -10/Mines | Assembled infested the area 977 | -10/Mines | Assisted by a Guerilla fighting off Assembled 1180 | -10/Mines | Entered Materials 1180 | -9/Materials | Evolved 2 slots: Utility x1, Weapon x1 1510 | -9/Materials | Build established: Tank 2049 | -9/Materials | Discovered new exit (range 4) 2188 | -9/Materials | Identified exit to Mines 2188 | -9/Materials | Identified exit to Storage 2256 | -9/Materials | Discovered new exit (range 4) 2806 | -9/Materials | Build established: Scavenger-Tank 2924 | -9/Materials | Discovered new exit (range 8) 3580 | -9/Materials | First assault squad dispatched 3899 | -9/Materials | Discovered new exit (range 7) 4077 | -9/Materials | Destroyed 8 combat bots 4156 | -9/Materials | Entered Mines 4341 | -9/Mines | Build established: Tank 4514 | -9/Mines | Learned Materials trap positions 4582 | -9/Mines | Discovered new exit (range 13) 4671 | -9/Mines | Learned Materials emergency access door positions 4769 | -9/Mines | Found a hidden stash of uninstalled traps 5209 | -9/Mines | Discovered new exit (range 12) 5238 | -9/Mines | Received a Mining Laser from a helpful Derelict 5538 | -9/Mines | Deemed a non-threat by the Exiles lab entrance 5538 | -9/Mines | Discovered new exit (range 5) 5549 | -9/Mines | Entered Exiles 5609 | -9/Exiles | Met 8R-AWN 5659 | -9/Exiles | Met EX-HEX 5796 | -9/Exiles | Met EX-DEC 5822 | -9/Exiles | Build established: Scavenger-Mutant 5841 | -9/Exiles | Learned location of Zion (-6) 5932 | -9/Exiles | Discovered new exit (range 12) 5960 | -9/Exiles | Entered Mines 6214 | -8/Mines | Discovered new exit (range 10) 6295 | -8/Mines | Entered Materials 6295 | -8/Materials | Evolved 2 slots: Propulsion x1, Utility x1 6296 | -8/Materials | Loaded intel: 16 trap records 6450 | -8/Materials | Build established: Scavenger-Tank 6655 | -8/Materials | Discovered new exit (range 3) 8295 | -8/Materials | Discovered new exit (range 9) 9271 | -8/Materials | Discovered new exit (range 10) 9413 | -8/Materials | Build established: Tank 10004 | -8/Materials | Entered Factory 10004 | -7/Factory | Evolved 2 slots: Utility x2 10231 | -7/Factory | Fabricated Huge Storage Unit? 10393 | -7/Factory | Identified exit to Lower Caves 10944 | -7/Factory | Build established: Skirmisher 11271 | -7/Factory | Entered Lower Caves 11351 | -7/Lower Caves | Encountered a Warlord checkpoint 11401 | -7/Lower Caves | Identified exit to Lower Caves 11404 | -7/Lower Caves | Self-destructed Last Messages --------------- 11130_ Slug penetrates Y-54 Guardian. 11133_ Slug penetrates Wall. 11133_ Slug penetrates Y-54 Guardian. 11133_ Y-54 Guardian destroyed. 11142_ K-01 Serf collects debris. 11147_ Slammed into K-01 Serf. 11153_ Acquired 68 matter. 11162_ R-06 Scavenger collects Imp. Heat Sink. 11191_ O-16 Technician: "IFF HANDSHAKE FAILED. SECURING TERMINAL." 11195_ ALERT: Hostiles spotted, dispatching reinforcements to Terminal F005. 11204_ K-01 Serf cleans the Fabricator. 11217_ Slug penetrates O-16 Technician. LOCATION=LOWER CAVES GOAL=ESCAPE 11340_ YI-02F(k) breaks down the debris. 11351_ B5-R73(M): "You haven't seen any Assembled, have you?" 11388_ YI-02F(k) breaks down the debris. 11401_ Acquired derelict log, extracted data. Loading 1 Lower Caves exit... Map ----- +----------------------------------------------------+ | | | | | ?????????????????????????????????????????????????? | | ?????????????????????????????????????????????????? | | ?????????????????????????????????????????????????? | | ?????????????????????????????????????????????????? | | ?????????????????????????????????????????????????? | | ?????????????????????????????????????????????????? | | ?????????????????????????????????????????????????? | | ?????????????????????????????????????????????????? | | ?????????????????????????????????????????????????? | | ?????????????????????????????????????????????????? | | ?????????????????????????????????????????????????? | | ?????????????????????????????????????????????????? | | ?????????????????????????????????????????????????? | | ?????????????????????????????????????????????????? | | ?????????????????????????????????????????????????? | | ?????????????????????????????????????????????????? | | ????????????????????????####?????????????????????? | | ??????????????????????### ##??#?????????????????? | | ?????????????##???????? ## ## ??????????####??? | | ????????????? ??????? # ????????# ### | | ???????????? ?????# ######## | | ???????????? ????# | | ??????????? ???# #? #? | | ???????????# ??# @#??????### #?? | | ????????????# k ## ##?????# #?? | | ?????????????# ##?#### #?? | | ???????????????# ### ## #?? | | ???????????????## ##? #?? | | ????????????????## %### #?? #?? | | ?????????????????# #??# ## ##?########?? | | ??????????????? ???# ### ##?????????? | | ?????????????# ????## #?## ##????????? | | ?????????????# ??????# #??# #????????? | | ?????????????# ??????? #??## #????????? | | ????????????? #???????####???# ##???????# | | ?????????????? #???????????????## ##??????# | | ?????????????????????????????????# # ##?????# | | ?????????????????????????????????# ## #?????# | | ?????????????????????????????????# ### #???### | | ?????????????????????????????????# #?# #??## # | | ????????????????????????????????? #?# #### | | ?????????????????????????????????###??## | | ???????????????????????????????????????## | | ????????????????????????????????????????####### | | ?????????????????????????????????????########## | | ?????????????????????????????????????# | | ?????????????????????????????????????# | | ????????????????????????????????????# ####### | +----------------------------------------------------+ Best States ------------- Heat Dissipation 56 Energy Generation 16 Energy Capacity 290 Matter Stores 300 Matter Capacity 300 Sight Range 16 Robot Scan Range 15 Terrain Scan Density 10 Armor Coverage 225 Weapon Cycling 15 Evasion (%) 40 Recoil Reduction 3 Offensive Hacking 10 Item Schematics ----------------- Hacking Suite | -9/Materials | Scanalyzed Autogun | -9/Materials | Scanalyzed Imp. Signal Interpreter | -9/Materials | Scanalyzed Adv. Targeting Computer | -9/Materials | Scanalyzed Huge Storage Unit | -8/Materials | Hacked Robot Schematics ------------------ None Fabricated ------------ Huge Storage Unit | x1 | -7/Factory Alien Tech Used ----------------- None Achievements -------------- None Challenges ------------ None Game ------ Seed TransportIntegratedSabre Manual? 0 Play Time 00:38:56 Cumulative 1225.4 hours Start 2021.05.31 @ 15:43:17 End 2021.05.31 @ 20:05:10 Sessions 3 Manual Loads 0 Difficulty Rogue Special Mode None Game No. 417 Rogue 417 Adventurer 0 Explorer 0 Win Type - Total 89 Types 18/12/37/5/1/2/12/1/1 Lore% 97 Gallery% 96 Achievement% 85 Wizard Run 0 Options --------- ASCII 0 Keyboard 0 Movement Numpad Keybinds 0 Fullscreen 1 Font 18/SmallcapsGlow Map View 76x50 Tactical HUD 1 Map Filters NONE Filters NONE Steam 1 RUN: ccf9d77f-8469-4fb9-95b4-ac26f0fe288b